Workbook

Sheet Aperçu Offre
C1: OFFRE
A8: Marché | C8: Beaumont - Entretien des voiries 2021 - Lot 3 (Strée - Rue de Donstiennes)
A9: Référence | C9: AC/1160/2019/0038-1
A10: Lieu | C10: Plusieurs lieux
A11: Pouvoir adjudicateur | C11: Ville de Beaumont
A12: Bureau d'études | C12: Arrondissement de Charleroi - Thuin
A13: Auteur de projet | C13: Xavier Appelmans
A16: Total des postes
B17: Hors TVA | C17: =Postes!M43 -> 5000
B18: TVA | C18: =C19-C17 -> 1050
B19: TVA comprise | C19: =Postes!M45 -> 6050
A21: Total des omissions
B22: HTVA | C22: =Omissions!E14 -> 0
B23: TVA | C23: =Omissions!E15 -> 0
B24: TVA comprise | C24: =C22+C23 -> 0
A26: Total de l'Offre
B27: HTVA | C27: =C17+C22 -> 5000
B28: TVA | C28: =C18+C23 -> 1050
B29: TVA comprise | C29: =C19+C24 -> 6050
A35: Lu et approuvé,
A37: Date
A38: Nom firme
A39: Addresse firme

Sheet Postes
A3: Métré récapitulatif “Beaumont - Entretien des voiries 2021 - Lot 3 (Strée - Rue de Donstiennes)”
A4: N° | B4: Référence | D4: Description | E4: Type | F4: U | G4: Q | H4: + | I4: - | J4: Adapté | K4: PU HTVA | L4: PU en lettres | M4: Total | N4: TVA % | O4: TVA | P4: Remarques
C5: AC/1160/2019/0038-1 | D5: BEAUMONT - ENTRETIEN 2021 - LOT3 Strée rue de Donstiennes
D6: rue de Donstiennes
D7: CHAPITRE D : TRAVAUX PREPARATOIRES - DEMOLITIONS
A8: 1 | B8: D3160-D | C8: D.2. | D8: Démolition sélective par fraisage de revêtement hydrocarboné, en épaisseur constante, profondeur : 7cm < E <= 10 cm, avec mise en dépôt | E8: QP | F8: m2 | G8: 4950 | J8: =G8-I8+H8 -> 4950 | L8: =EUROToLetters(K8) ->  | M8: =ROUND(G8*ROUND(K8,2),2) -> 0 | N8: 0.21 | O8: =ROUND(N8*ROUND(M8,2),2) -> 0 | Q8: k3
A9: 2 | B9: D4112 | C9: D.2. | D9: Sciage de revêtement en hydrocarboné, profondeur : 5 < E <= 10 cm | E9: QP | F9: m | G9: 30 | J9: =G9-I9+H9 -> 30 | L9: =EUROToLetters(K9) ->  | M9: =ROUND(G9*ROUND(K9,2),2) -> 0 | N9: 0.21 | O9: =ROUND(N9*ROUND(M9,2),2) -> 0 | Q9: k3
A10: 3 | B10: D4610-RE | C10: D.2. | D10: Démolition sélective de fondation / sous-fondation de chaussée, en matériaux non liés, en recherche, en vue d'une évacuation | E10: QP | F10: m3 | G10: 310 | J10: =G10-I10+H10 -> 310 | L10: =EUROToLetters(K10) ->  | M10: =ROUND(G10*ROUND(K10,2),2) -> 0 | N10: 0.21 | O10: =ROUND(N10*ROUND(M10,2),2) -> 0 | Q10: k3
D11: En vue des remplacements ponctuels éventuels de fondation existante non portante, suivant les indications du fonctionnaire délégué | E11: PM | L11: (est compris dans le PU)
A12: 4 | B12: D9440 | C12: D.2. | D12: Mise en site autorisé de déchets traités de pierres naturelles - Code wallon des déchets : 01.01.02 - Déchets provenant de l'extraction de minéraux non métallifères | E12: QP | F12: m3 | G12: 232.5 | J12: =G12-I12+H12 -> 232.5 | L12: =EUROToLetters(K12) ->  | M12: =ROUND(G12*ROUND(K12,2),2) -> 0 | N12: 0.21 | O12: =ROUND(N12*ROUND(M12,2),2) -> 0 | Q12: k3
D13: Evacuation des déchets du(des) poste(s) n° 3 | E13: PM | L13: (est compris dans le PU)
A14: 5 | B14: D9465 | C14: D.2. | D14: Mise en site autorisé de terres - Type d'usage V - Industriel | E14: QP | F14: m3 | G14: 317.5 | J14: =G14-I14+H14 -> 317.5 | L14: =EUROToLetters(K14) ->  | M14: =ROUND(G14*ROUND(K14,2),2) -> 0 | N14: 0.21 | O14: =ROUND(N14*ROUND(M14,2),2) -> 0 | Q14: k3
D15: Evacuation des déchets du(des) poste(s) n° 3, 7 | E15: PM | L15: (est compris dans le PU)
D16: CHAPITRE E : TERRASSEMENTS
A17: 6 | B17: E2320-E | C17: E.2.2. | D17: Déblais localisés, pour coffre de chaussée, en vue d'une évacuation | E17: QP | F17: m3 | G17: 240 | J17: =G17-I17+H17 -> 240 | L17: =EUROToLetters(K17) ->  | M17: =ROUND(G17*ROUND(K17,2),2) -> 0 | N17: 0.21 | O17: =ROUND(N17*ROUND(M17,2),2) -> 0 | Q17: k3
D18: CHAPITRE F : SOUS-FONDATIONS ET FONDATIONS
A19: 7 | B19: F1110 | C19: F.2.1.1. | D19: Travaux préalables, géosynthétiques, géotextile anticontaminant | E19: QP | F19: m2 | G19: 1500 | J19: =G19-I19+H19 -> 1500 | L19: =EUROToLetters(K19) ->  | M19: =ROUND(G19*ROUND(K19,2),2) -> 0 | N19: 0.21 | O19: =ROUND(N19*ROUND(M19,2),2) -> 0 | Q19: k3
A20: 8 | B20: F1512 | C20: F.4.1. | D20: Travaux préalables, reprofilage d'une sous-fondation/fondation préexistante, reprofilage et compactage, d'une fondation préexistante | E20: QP | F20: m2 | G20: 4950 | J20: =G20-I20+H20 -> 4950 | L20: =EUROToLetters(K20) ->  | M20: =ROUND(G20*ROUND(K20,2),2) -> 0 | N20: 0.21 | O20: =ROUND(N20*ROUND(M20,2),2) -> 0 | Q20: k3
A21: 9 | B21: F1522-F | C21: F.4.1. | D21: Travaux préalables, reprofilage d'une sous-fondation/fondation préexistante, matériaux d'apport pour reprofilage, pour une fondation | E21: QP | F21: t | G21: 100 | J21: =G21-I21+H21 -> 100 | L21: =EUROToLetters(K21) ->  | M21: =ROUND(G21*ROUND(K21,2),2) -> 0 | N21: 0.21 | O21: =ROUND(N21*ROUND(M21,2),2) -> 0 | Q21: k3
A22: 10 | B22: F3134 | C22: F.4.2. | D22: Fondation en empierrement continu type I A ou II A (au ciment), épaisseur : E = 25 cm | E22: QP | F22: m2 | G22: 1200 | J22: =G22-I22+H22 -> 1200 | L22: =EUROToLetters(K22) ->  | M22: =ROUND(G22*ROUND(K22,2),2) -> 0 | N22: 0.21 | O22: =ROUND(N22*ROUND(M22,2),2) -> 0 | Q22: k3
D23: En vue des remplacements ponctuels éventuels de fondation existante non portante, suivant les indications du fonctionnaire délégué | E23: PM | L23: (est compris dans le PU)
D24: CHAPITRE G : REVETEMENTS
A25: 11 | B25: G2310-R | C25: G.2.2.2.1.1. | D25: Enrobés à squelette sableux, AC-10base3-1, en recherche | E25: QP | F25: t | G25: 750 | J25: =G25-I25+H25 -> 750 | L25: =EUROToLetters(K25) ->  | M25: =ROUND(G25*ROUND(K25,2),2) -> 0 | N25: 0.21 | O25: =ROUND(N25*ROUND(M25,2),2) -> 0 | Q25: k1
A26: 12 | B26: G2611 | C26: G.2.2.2.1.2. | D26: Enrobés à squelette sableux, AC-10surf4-1 - épaisseur E = 40 mm | E26: QP | F26: m2 | G26: 4950 | J26: =G26-I26+H26 -> 4950 | L26: =EUROToLetters(K26) ->  | M26: =ROUND(G26*ROUND(K26,2),2) -> 0 | N26: 0.21 | O26: =ROUND(N26*ROUND(M26,2),2) -> 0 | Q26: k1
A27: 13 | B27: G5211 | C27: G. 2.2.8.2. | D27: Opération sur revêtement, couche de collage sur béton récent | E27: QP | F27: m2 | G27: 1200 | J27: =G27-I27+H27 -> 1200 | L27: =EUROToLetters(K27) ->  | M27: =ROUND(G27*ROUND(K27,2),2) -> 0 | N27: 0.21 | O27: =ROUND(N27*ROUND(M27,2),2) -> 0 | Q27: k1
D28: sur les éventuels remplacements de fondation existantes | E28: PM | L28: (est compris dans le PU)
A29: 14 | B29: G5221 | C29: G. 2.2.8.2. | D29: Opération sur revêtement, couche de collage sur enrobé bitumineux récent | E29: QP | F29: m2 | G29: 4950 | J29: =G29-I29+H29 -> 4950 | L29: =EUROToLetters(K29) ->  | M29: =ROUND(G29*ROUND(K29,2),2) -> 0 | N29: 0.21 | O29: =ROUND(N29*ROUND(M29,2),2) -> 0 | Q29: k1
A30: 15 | B30: G8831 | C30: G.6. | D30: Revêtement en granulats, épaisseur : E = 5 cm | E30: QP | F30: m2 | G30: 300 | J30: =G30-I30+H30 -> 300 | L30: =EUROToLetters(K30) ->  | M30: =ROUND(G30*ROUND(K30,2),2) -> 0 | N30: 0.21 | O30: =ROUND(N30*ROUND(M30,2),2) -> 0 | Q30: k3
D31: Pour rétablissement d'accotements | E31: PM | L31: (est compris dans le PU)
D32: CHAPITRE M : TRAVAUX D'ENTRETIEN ET DE REPARATION
A33: 16 | B33: M1241-E | C33: M.1.6.8. | D33: Curage de fossé non revêtu, en accotement, en vue d'une évacuation | E33: QP | F33: m | G33: 2500 | J33: =G33-I33+H33 -> 2500 | L33: =EUROToLetters(K33) ->  | M33: =ROUND(G33*ROUND(K33,2),2) -> 0 | N33: 0.21 | O33: =ROUND(N33*ROUND(M33,2),2) -> 0 | Q33: k3
A34: 17 | B34: M8420-C | C34: M.1.11. | D34: Terr. part. , remise sous profil d'accotement, avec apport de matériaux, en provenance du chantier | E34: QP | F34: t | G34: 520 | J34: =G34-I34+H34 -> 520 | L34: =EUROToLetters(K34) ->  | M34: =ROUND(G34*ROUND(K34,2),2) -> 0 | N34: 0.21 | O34: =ROUND(N34*ROUND(M34,2),2) -> 0 | Q34: k3
D35: Réuilisation des fraisats en accotement | E35: PM | L35: (est compris dans le PU)
D36: CHAPITRE X : TRAVAUX EN REGIE ET DIVERS
A37: 18 | B37: X1120 | D37: Prestation d'ouvrier spécialisé | E37: QP | F37: h | G37: 32 | J37: =G37-I37+H37 -> 32 | L37: =EUROToLetters(K37) ->  | M37: =ROUND(G37*ROUND(K37,2),2) -> 0 | N37: 0.21 | O37: =ROUND(N37*ROUND(M37,2),2) -> 0 | Q37: k3
A38: 19 | B38: X1140 | D38: Prestation d'ouvrier qualifié du 2ème échelon | E38: QP | F38: h | G38: 32 | J38: =G38-I38+H38 -> 32 | L38: =EUROToLetters(K38) ->  | M38: =ROUND(G38*ROUND(K38,2),2) -> 0 | N38: 0.21 | O38: =ROUND(N38*ROUND(M38,2),2) -> 0 | Q38: k3
A39: 20 | B39: X2130 | D39: Utilisation d'un camion de charge utile supérieure à 15 t | E39: QP | F39: h | G39: 32 | J39: =G39-I39+H39 -> 32 | L39: =EUROToLetters(K39) ->  | M39: =ROUND(G39*ROUND(K39,2),2) -> 0 | N39: 0.21 | O39: =ROUND(N39*ROUND(M39,2),2) -> 0 | Q39: k3
A40: 21 | B40: X2220 | D40: Utilisation d'un engin de terrassement, puissance comprise entre 50 KW et 75 KW | E40: QP | F40: h | G40: 32 | J40: =G40-I40+H40 -> 32 | L40: =EUROToLetters(K40) ->  | M40: =ROUND(G40*ROUND(K40,2),2) -> 0 | N40: 0.21 | O40: =ROUND(N40*ROUND(M40,2),2) -> 0 | Q40: k3
A41: 22 | B41: X9100 | D41: Somme réservée | E41: SR | F41: EUR | G41: 5000 | J41: =G41-I41+H41 -> 5000 | K41: 1 | L41: =EUROToLetters(K41) ->  | M41: =ROUND(G41*ROUND(K41,2),2) -> 5000 | N41: 0.21 | O41: =ROUND(N41*ROUND(M41,2),2) -> 1050 | Q41: k2
A43: Total HTVA : | M43: =SUM(M8:M41) -> 5000
A44: TVA : | M44: =SUM(O8:O41) -> 1050
A45: Total TVAC : | M45: =M43+M44 -> 6050
A46: Les prix unitaires doivent être mentionnés avec 2 chiffres après la virgule. La quantité de produits x le prix unitaire doivent être à chaque fois arrondis à 2 chiffres après la virgule.
A50: Vu, vérifié et complété avec les prix unitaires, les totaux partiels et le total global qui ont servi à déterminer le montant de mon offre de ce jour, pour être joint à mon formulaire d’offre. Fait à .......................................... le ...................................................... Fonction : ...................................................... Nom et prénom : ....................................................................

Sheet Omissions
A3: Description | B3: Q | C3: PU en chiffres | D3: PU en lettres | E3: Total | F3: TVA % | G3: TVA
E4: =ROUND(B4*C4,2) -> 0 | G4: =E4*F4 -> 0
E5: =ROUND(B5*C5,2) -> 0 | G5: 0
E6: =ROUND(B6*C6,2) -> 0 | G6: 0
E7: 0 | G7: 0
E8: 0 | G8: 0
E9: 0 | G9: 0
E10: 0 | G10: 0
E11: 0 | G11: 0
E12: 0 | G12: 0
E13: =ROUND(B13*C13,2) -> 0 | G13: 0
D14: Total : | E14: =SUM(E4:E13) -> 0
D15: TVA : | E15: =ROUND(SUM(G4:G13),2) -> 0
D16: Total TVAC : | E16: =E14+E15 -> 0

Sheet 3P
B1: A propos de 3P
B3: 3P - Gestion des marchés publics par une application conviviale pour la gestion, le suivi et l'automatisation des dossiers d'achat des pouvoirs adjudicateurs soumis à la "Législation sur les Marchés Publics".
B4: 3P englobe la gestion des dossiers de marché public de A à Z :
B5: du budget à l'exécution
B6: 3P est le seul programme sur le marché à proposer la gestion aussi bien de travaux que de fournitures et services, et ceci pour toutes les procédures, nationales ou européennes. Le suivi budgétaire (budget, crédits, subsides, amendes, cautions, ...), le suivi administratif ainsi que la génération de documents (tous les documents requis par la loi sont repris!), le suivi technique (métrés, états d'avancement, ...), toutes les opérations de calcul (prix anormaux, omissions, décompte final, ...) : tous sont repris dans le programme 3P, le seul programme vous proposant une gestion aussi complète de vos marchés publics.
B7: 3P a été élaboré en collaboration avec un groupe d'administrations publiques, allant des "autorités classiques" (communes, villes, autorités provinciales, ministères,...) aux entreprises d'intérêt public (tranports publics, gestion des eaux, ...) en passant par les entreprises publiques "commerciales". En bref, le programme est parfaitement adapté à tous les services publics.
B8: 3P est une application très conviviale et rapide, aussi bien à l'utilisation qu'à l'entretien. L'utilisateur ne rencontrera que très rarement un "sablier", les écrans s'affichent en quelques dizièmes de secondes. Grâce à la gestion automatique des versions, il n'est nul besoin d'un gestionnaire système pour 3P.
B9: Comme les nombreux utilisateurs de 3P, vous vous sentirez immédiatement à l'aise dans 3P. Ceci non seulement grâce à l'utilisation des technologies de pointe les plus modernes mais également grâce au fait que les utilisateurs actuels de 3P ont été impliqués depuis le début dans l'élaboration du programme, et qu'avec nous, ils ont jaugé toutes les fonctionnalités de 3P.
B10: Et enfin... 3P vous est proposé à des tarifs imbattables! 3P est donc à la portée de toutes les administrations publiques.
B11: Nous vous souhaitons une fructueuse utilisation de 3P !
B13: L'équipe de 3P
B15: Contact:
B16: 3P
B17: Verviersstraat 1
B18: 2000 Anvers
B19: Tél: 03/294.30.51
B20: Fax: 03/294.30.52
B21: info@3p.eu

Sheet Légende
A2: Version | B2: 1.1
A3: 1. Titres | B3: Seules les colonnes suivantes sont importantes pour l'importation:
A4: Description | B4: Pour une ligne blanche, vous pouvez simplement laisser cette colonne vide.
A5: Référence | B5: Référence au CSCH-type ou à votre propre numérotation.
A6: (Référence complémentaire) | B6: P.ex. pour mentionner qu'il s'agit d'un chapitre qui n'apparaît pas dans le CSCH-type
A7: 2. Sous-totaux | B7: Pour les sous-totaux, seules les colonnes suivantes sont pertinentes pour l’import :
A8: Description | B8: Courte description, ex. « sous-total 1 : travaux d’égouttage »
A9: Total | B9: Total des postes ci-dessus (PUxQ). Important : ce total doit pouvoir être calculé dans excel via la fonction « Somme » !
A10: 3. Postes | B10: Explication des colonnes
A11: Numérotation | B11: Numérotation (champ intègre non modifiable). Laisser cette colonne vide. 3P définit la numérotation suivant l'ordre des postes. Si vous avez votre propre numérotation, vous pouvez l'ajouter dans la colonne Référence (qui sert normalement à la référence du CSCH-type).
A12: Référence | B12: Référence à un poste complémentaire dans le CSCH-type.
A13: Référence complémentaire | B13: P.ex. pour mentionner qu'il s'agit d'un poste qui n'apparaît pas dans le CSCH-type
A14: Description | B14: Description obligatoire du poste
A15: Type | B15: Vous pouvez compléter ici suivant une des possibilités suivantes : o QP ou Q.P. : un poste à quantité présumée. Ceci signifie que la quantité du poste ne peut être définie avec précision à l'avance dans le CSCH et qu'il ne peut donc être donné qu'une approximation. Pendant l'exécution, cette quantité peut s'avérer supérieure ou inférieure à la quantité présumée signifiée donc dans le CSCH. Lors du décompte final, le décompte de tous les QP est toujours fait séparément. o QF ou Q.F. : un poste à quantité forfaitaire. Ceci signifie que la quantité du poste est définie avec exactitude dans le CSCH et ne peut en aucun cas être dépassée pendant l'exécution, sauf suite à l'approbation d'un décompte. o PT / PG : un poste à prix total / global. La quantité est 1, le prix total du poste est donné. o MF : un poste à montant fixe. Ceci signifie que le montant est fixé à l'avance et qu'il sera le même dans toutes les offres, p.ex. pour les essais. o SR : une somme réservée. Ici aussi, le montant est fixé à l'avance et sera le même dans toutes les offres, p.ex. pour des travaux supplémentaires. Cette somme ne sera typiquement pas entièrement utilisée. N'est pas sensible à la casse (majuscules). Si non complété, 3P suppose qu'il s'agit d'une quantité présumée (QP). o PM : un poste pour mémoire. Ceci est une ligne où l'on n'ajoute pas d'estimation ou de quantité, mais utilisée à titre informatif. (par exemple: pour mentionner quels éléments sont inclus dans les postes ci-dessus). Si l’on ajoute une estimation et une quantité, ce poste sera repris dans la liste des postes du métré, mais le prix n’est pas comptabilisé dans l’estimation ou l’offre (et n’est pas montré au soumissionnaire).
A16: U | B16: Unité
A17: Q | B17: Quantité du poste. Via ce champ, 3P différencie un poste d'un titre.
A18: PU | B18: Prix unitaire du poste (0 = poste gratuit)
A19: Total | B19: Ce résultat est calculé par 3P et arrondi à 2 chiffres après la virgule
A20: TVA% | B20: Si vous ne complétez pas ceci, 3P suppose que vous reprenez le pourcentage standard de TVA de votre pouvoir adjudicateur (souvent 21%¨). Pour un poste sans TVA ou avec un autre pourcentage de TVA, veillez à compléter le pourcentage en question. Le total TVA par pourcentage est également arrondi à 2 chiffres après la virgule.
